Workbook

Sheet паспорт
A1: ПАТ "УКРТРАНСГАЗ" | G1: ПАСПОРТ ФІЗИКО-ХІМІЧНИХ ПОКАЗНИКІВ ПРИРОДНОГО ГАЗУ № 878
A2: Філія "УМГ "Черкаситрансгаз" | G2: переданого Кременчуцьким ЛВУМГ та прийнятого ПАТ "Кременчукгаз", ВАТ "Кіровоградгаз",
A3: Кременчуцьке ЛВУМГ | G3: Маршрут № 878
A4: Вимірювальна хіміко-аналітична лабораторія
A5: Кременчуцького промислового майданчика
A6: Свідоцтво № 0612 КФ від 30.12.15р. чинне до 20.06.19р. | K6: по газопроводу "Диканька-Кременчук-Кривий Ріг" | V6: за період з | X6: 2017-02-01 | Z6: по | AA6: 2017-02-28
A8: Число місяця | B8: Компонентний склад, % мол. | N8: Фізико-хімічні показники газу обчислені на основі компонентного складу, 101,325 кПа | X8: Температура точки роси за вологою (Р = 3.92 МПа), °С | Y8: Температура точки роси за вуглеводнями, °С | Z8: Вміст сірководню, г/м3 | AA8: Вміст меркаптанової сірки, г/м3 | AB8: Вміст механічних домішок, г/м3
N9: Густина абсолютна, кг/м3,при 20 °С, | O9: Температура вимірювання/згоряння при 20/25°С
B10: метан, С1 | C10: етан, С2 | D10: пропан, С3 | E10: ізо-бутан, і-С4 | F10: н-бутан, н-С4 | G10: нео-пентан, нео-С5 | H10: ізо-пентан, і-С5 | I10: н-пентан, н-С5 | J10: гексани та вищі, С6+ | K10: кисень, О2 | L10: азот, N2 | M10: діоксид вуглецю, CО2 | O10: Теплота згоряння нижча | R10: Теплота згоряння вища | U10: Число Воббе вище
O11: ккал/м³ | P11: МДж/м³ | Q11: кВт⋅год/м³ | R11: ккал/м³ | S11: МДж/м³ | T11: кВт⋅год/м³ | U11: ккал/м³ | V11: МДж/м³ | W11: кВт⋅год/м³
A12: 1 | O12: =P12*238.8459 -> 8235.406632 | P12: 34.48 | Q12: =P12/3.6 -> 9.577777778 | R12: =S12*238.8459 -> 9123.91338 | S12: 38.2 | T12: =S12/3.6 -> 10.61111111 | AC12: =SUM(B12:M12)+$K$43+$N$43 -> 0
A13: 2 | O13: =P13*238.8459 -> 8235.406632 | P13: 34.48 | Q13: 9.577777778 | R13: =S13*238.8459 -> 9123.91338 | S13: 38.2 | T13: 10.61111111 | AC13: 0
A14: 3 | O14: 8235.406632 | P14: 34.48 | Q14: 9.577777778 | R14: 9123.91338 | S14: 38.2 | T14: 10.61111111 | AC14: 0 | AD14: =IF(AC14=100,"ОК"," ") -> 
A15: 4 | O15: 8235.406632 | P15: 34.48 | Q15: 9.577777778 | R15: 9123.91338 | S15: 38.2 | T15: 10.61111111 | AC15: 0 | AD15: =IF(AC15=100,"ОК"," ") -> 
A16: 5 | O16: 8235.406632 | P16: 34.48 | Q16: 9.577777778 | R16: 9123.91338 | S16: 38.2 | T16: 10.61111111 | AC16: 0
A17: 6 | B17: 91.022 | C17: 4.342 | D17: 1.094 | E17: 0.121 | F17: 0.203 | G17: 0.005 | H17: 0.052 | I17: 0.043 | J17: 0.05 | K17: 0.001 | L17: 1.618 | M17: 1.449 | N17: 0,7410 | O17: 8247.348927 | P17: 34.53 | Q17: 9.591666667 | R17: 9135.855675 | S17: 38.25 | T17: 10.625 | U17: 11 648 | V17: 48,77 | W17: =V17/3.6 -> 13.54722222 | X17: -12,2 | AC17: 100 | AD17: ОК
A18: 7 | O18: 8247.348927 | P18: 34.53 | Q18: 9.591666667 | R18: 9135.855675 | S18: 38.25 | T18: 10.625 | AC18: 0
A19: 8 | O19: 8247.348927 | P19: 34.53 | Q19: 9.591666667 | R19: 9135.855675 | S19: 38.25 | T19: 10.625 | AC19: 0
A20: 9 | O20: 8247.348927 | P20: 34.53 | Q20: 9.591666667 | R20: 9135.855675 | S20: 38.25 | T20: 10.625 | AC20: 0
A21: 10 | O21: 8247.348927 | P21: 34.53 | Q21: =P21/3.6 -> 9.591666667 | R21: 9135.855675 | S21: 38.25 | T21: =S21/3.6 -> 10.625 | AC21: 0
A22: 11 | O22: 8247.348927 | P22: 34.53 | Q22: 9.591666667 | R22: 9135.855675 | S22: 38.25 | T22: 10.625 | AC22: 0
A23: 12 | O23: 8247.348927 | P23: 34.53 | Q23: 9.591666667 | R23: 9135.855675 | S23: 38.25 | T23: 10.625 | AC23: 0
A24: 13 | B24: 91.5042 | C24: 4.1113 | D24: 1.049 | E24: 0.1193 | F24: 0.1912 | G24: 0.0044 | H24: 0.0488 | I24: 0.0401 | J24: 0.0496 | K24: 0.0011 | L24: 1.5211 | M24: 1.3599 | N24: 0,7372 | O24: 8237.795091 | P24: 34.49 | Q24: 9.580555556 | R24: 9126.301839 | S24: 38.21 | T24: 10.61388889 | U24: 11 666 | V24: 48,84 | W24: =V24/3.6 -> 13.56666667 | X24: -11,5 | AC24: 100 | AD24: ОК
A25: 14 | O25: 8237.795091 | P25: 34.49 | Q25: 9.580555556 | R25: 9126.301839 | S25: 38.21 | T25: 10.61388889 | AC25: 0
A26: 15 | O26: 8237.795091 | P26: 34.49 | Q26: 9.580555556 | R26: 9126.301839 | S26: 38.21 | T26: 10.61388889 | AC26: 0
A27: 16 | O27: 8237.795091 | P27: 34.49 | Q27: =P27/3.6 -> 9.580555556 | R27: 9126.301839 | S27: 38.21 | T27: =S27/3.6 -> 10.61388889 | AC27: 0
A28: 17 | O28: 8237.795091 | P28: 34.49 | Q28: 9.580555556 | R28: 9126.301839 | S28: 38.21 | T28: 10.61388889 | AC28: 0
A29: 18 | O29: 8237.795091 | P29: 34.49 | Q29: 9.580555556 | R29: 9126.301839 | S29: 38.21 | T29: 10.61388889 | AC29: 0
A30: 19 | O30: 8237.795091 | P30: 34.49 | Q30: 9.580555556 | R30: 9126.301839 | S30: 38.21 | T30: 10.61388889 | AC30: 0
A31: 20 | B31: 91.0889 | C31: 4.2366 | D31: 1.1717 | E31: 0.1273 | F31: 0.2158 | G31: 0.0044 | H31: 0.0518 | I31: 0.0429 | J31: 0.0489 | K31: 0.001 | L31: 1.3729 | M31: 1.6378 | N31: 0,7426 | O31: 8259.291222 | P31: 34.58 | Q31: 9.605555556 | R31: 9147.79797 | S31: 38.3 | T31: 10.63888889 | U31: 11 651 | V31: 48,78 | W31: 13.55 | X31: -9,1 | AC31: 100 | AD31: =IF(AC31=100,"ОК"," ") -> ОК
A32: 21 | O32: 8259.291222 | P32: 34.58 | Q32: 9.605555556 | R32: 9147.79797 | S32: 38.3 | T32: 10.63888889 | AC32: 0
A33: 22 | O33: 8259.291222 | P33: 34.58 | Q33: 9.605555556 | R33: 9147.79797 | S33: 38.3 | T33: 10.63888889 | AC33: 0
A34: 23 | O34: 8259.291222 | P34: 34.58 | Q34: =P34/3.6 -> 9.605555556 | R34: 9147.79797 | S34: 38.3 | T34: =S34/3.6 -> 10.63888889 | AC34: 0 | AD34: =IF(AC34=100,"ОК"," ") -> 
A35: 24 | O35: 8259.291222 | P35: 34.58 | Q35: 9.605555556 | R35: 9147.79797 | S35: 38.3 | T35: 10.63888889 | AC35: 0
A36: 25 | O36: 8259.291222 | P36: 34.58 | Q36: 9.605555556 | R36: 9147.79797 | S36: 38.3 | T36: 10.63888889 | AC36: 0
A37: 26 | O37: 8259.291222 | P37: 34.58 | Q37: 9.605555556 | R37: 9147.79797 | S37: 38.3 | T37: =S37/3.6 -> 10.63888889 | AC37: 0
A38: 27 | B38: 91.4317 | C38: 4.0898 | D38: 1.0938 | E38: 0.1209 | F38: 0.1943 | G38: 0.0041 | H38: 0.0492 | I38: 0.041 | J38: 0.0491 | K38: 0.0011 | L38: 1.519 | M38: 1.406 | N38: 0,7382 | O38: 8240.18355 | P38: 34.5 | Q38: 9.583333333 | R38: 9128.690298 | S38: 38.22 | T38: 10.61666667 | U38: 11 660 | V38: 48,82 | W38: 13.56111111 | X38: -9,2 | Z38: 0,0030 | AA38: 0,0040 | AB38: відсутні | AC38: 100 | AD38: ОК
A39: 28 | O39: 8240.18355 | P39: 34.5 | Q39: 9.583333333 | R39: 9128.690298 | S39: 38.22 | T39: 10.61666667 | AC39: 0
A40: 29 | O40: 0 | P40: 0 | Q40: =P40/3.6 -> 0 | R40: 0 | S40: 0 | T40: =S40/3.6 -> 0 | AC40: 0
A41: 30 | O41: 0 | P41: 0 | Q41: =P41/3.6 -> 0 | R41: 0 | S41: 0 | T41: =S41/3.6 -> 0 | AC41: 0
A42: 31 | O42: 0 | P42: 0 | Q42: =P42/3.6 -> 0 | R42: 0 | S42: 0 | T42: =S42/3.6 -> 0 | AC42: 0
A43: Вміст одоранта при одоризації становить 16 г на 1 000 м³ газу | O43: =AVERAGEA(O12:O39) -> 8245.301676 | P43: =AVERAGEA(P12:P39) -> 34.52142857 | Q43: 9.589285714 | R43: =9133 -> 9133 | S43: 38.24142857 | T43: 10.62261905
H44: Середньозважене значення теплоти згоряння:
B46: Начальник управління Кременчуцького ЛВУМГ Кучерук В.М. | Z46: 02.03.2017 р.
C47: Підрозділу підприємства, якому підпорядкована лабораторія | M47: прізвище | V47: підпис | Z47: дата
B48: Начальник лабораторії ВХАЛ Кучерук Н.М. | Z48: 02.03.2017 р.
C49: Лабораторія, де здійснювалось вимірювання газу | M49: прізвище | V49: підпис | Z49: дата
B50: Провідний економіст із збуту Кривулькін І.В. | Z50: 02.03.2017 р.
C51: Підрозділу, відповідального за облік газу за маршрутом | M51: прізвище | V51: підпис | Z51: дата

Sheet додаток
A2: Додаток до Паспорту фізико-хімічних показників природного газу № 878
A4: Область | B4: ГРС, прямий споживач | C4: Cередньозважене значення вищої теплоти згоряння
C5: МДж/м³ | D5: ккал/м³ | E5: кВт*год./м³
A6: Полтавська область | B6: ГРС Крюків | C6: 38.23966577 | D6: 9133.387388 | E6: 10.62212938
A7: Кіровоградська область | B7: ГРС Успенка | C7: 38.23866464 | D7: 9133.148271 | E7: 10.62185129
B8: ГРС Онуфріївка | C8: 38.23867292 | D8: 9133.150247 | E8: 10.62185359
B9: ГРС Світловодськ | C9: 38.23978592 | D9: 9133.416084 | E9: 10.62216276
A10: Середньозважене значення вищої теплоти згоряння по маршруту № 878 | C10: 38.23965122 | D10: 9133.38391 | E10: 10.62212534
A14: Начальник управління Кременчуцького ЛВУМГ Кучерук В.Н. | F14: 02.03.2017 р.
A15: Підрозділу підприємства, якому підпорядкована лабораторія | D15: прізвище | E15: підпис | F15: дата
A16: Начальник лабораторії ВХАЛ Кучерук Н.М. | F16: 02.03.2017 р.
A17: Лабораторія, де здійснювалось вимірювання газу | D17: прізвище | E17: підпис | F17: дата
A18: Провідний економіст із збуту Кривулькін І.В. | F18: 02.03.2017 р.
A19: Підрозділу, відповідального за облік газу за маршрутом | D19: прізвище | E19: підпис | F19: дата

Sheet variablesList (hidden)
A1: 3 | B1: x:\gaysin | C1: 10, 11, 24, 25, 127, 128, 132, 180, 207, 215 | D1: x:\
B2: x:\Illinci
B3: x:\Talne
